fUSD/lending_fUSD_20250111
["ID","MTS","AMOUNT","RATE_DAILY","PERIOD"]
[348520143,1736601052011,-500.0,0.00010716,2]
[348520144,1736601052021,-202.10572793,0.00010716,2]
[348520145,1736601052030,-533.2,0.00010716,2]
[348520146,1736601052040,-500.0,0.00010716,2]
[348520147,1736601052049,-500.0,0.00010716,2]
[348520148,1736601052058,-500.0,0.00010716,2]
[348520149,1736601052067,-512.28,0.00010716,2]
[348520150,1736601052077,-500.0,0.00010716,2]
[348520151,1736601052086,-500.0,0.00010716,2]
[348520152,1736601052095,-500.0,0.00010716,2]
[348520153,1736601052105,-544.43,0.00010716,2]
[348520154,1736601052114,-500.0,0.00010716,2]
[348520155,1736601052123,-500.0,0.00010716,2]
[348520156,1736601052493,-319.17,0.00010716,2]
[348520157,1736601052510,-500.0,0.00010716,2]
[348520158,1736601052519,-500.0,0.00010716,2]
[348520159,1736601052529,-500.0,0.00010716,2]
[348520160,1736601052538,-322.30525445,0.00010716,2]
[348520161,1736601052548,-500.0,0.00010716,2]
[348520162,1736601052558,-500.0,0.00010716,2]
[348520163,1736601052567,-502.85963921,0.00010716,2]
[348520164,1736601052576,-500.0,0.00010716,2]
[348520165,1736601052586,-557.7,0.00010716,2]
[348520166,1736601052596,-500.0,0.00010716,2]
[348520167,1736601052605,-719.26,0.00010716,2]
[348520168,1736601052615,-512.42,0.00010716,2]
[348520169,1736601052624,-163.84,0.00010716,2]
[348520170,1736601052633,-500.0,0.00010716,2]
[348520171,1736601052643,-561.47,0.00010716,2]
[348520172,1736601052653,-500.0,0.00010716,2]
[348520173,1736601052662,-500.0,0.00010716,2]
[348520174,1736601052672,-996.41,0.00010716,2]
[348520175,1736601052683,-506.32932617,0.00010716,2]
[348520176,1736601052693,-500.0,0.00010716,2]
[348520177,1736601052703,-604.34260467,0.00010716,2]
[348520178,1736601052712,-500.0,0.00010716,2]
[348520179,1736601052722,-156.43390287,0.00010716,2]
[348520180,1736601052731,-500.0,0.00010716,2]
[348520181,1736601052741,-364.14,0.00010716,2]
[348520182,1736601052750,-500.0,0.00010716,2]
[348520183,1736601052759,-531.59,0.00010716,2]
[348520184,1736601052768,-989.98,0.00010716,2]
[348520185,1736601052777,-500.0,0.00010716,2]
[348520186,1736601052787,-508.08364678,0.00010716,2]
[348520187,1736601052796,-500.0,0.00010716,2]
[348520188,1736601052805,-500.0,0.00010716,2]
[348520189,1736601052814,-500.0,0.00010716,2]
[348520190,1736601052824,-976.91,0.00010716,2]
[348520191,1736601052834,-500.0,0.00010716,2]
[348520192,1736601052843,-939.52,0.00010716,2]
[348520193,1736601052852,-500.0,0.00010716,2]
[348520194,1736601052862,-500.0,0.00010716,2]
[348520195,1736601052872,-500.0,0.00010716,2]
[348520196,1736601052882,-1132.55,0.00010716,2]
[348520197,1736601052891,-500.0,0.00010716,2]
[348520198,1736601052900,-500.0,0.00010716,2]
[348520199,1736601052910,-1758.0,0.00010716,2]
[348520200,1736601052919,-3788.33,0.00010716,2]
[348520201,1736601052930,-500.0,0.00010716,2]
[348520202,1736601052939,-1017.69,0.00010716,2]
[348520203,1736601052952,-500.0,0.00010716,2]
[348520204,1736601052961,-959.25,0.00010716,2]
[348520205,1736601052971,-500.0,0.00010716,2]
[348520206,1736601052981,-915.75,0.00010716,2]
[348520207,1736601052990,-151.122076,0.00010716,2]
[348520208,1736601053000,-500.0,0.00010716,2]
[348520209,1736601053009,-500.0,0.00010716,2]
[348520210,1736601053019,-1294.79,0.00010716,2]
[348520211,1736601053028,-500.0,0.00010716,2]
[348520212,1736601053038,-757.41,0.00010716,2]
[348520213,1736601053047,-75.51580235,0.00010716,2]
[348520214,1736601053396,-435.85,0.00010384,2]
[348520215,1736601053406,-437.9,0.00010384,2]
[348520216,1736601053416,-528.49211457,0.00010716,2]
[348520217,1736601053427,-371.9304,0.00010716,2]
[348520218,1736601053445,-71.03168308,0.00010716,2]
[348520219,1736601053455,-500.0,0.00010716,2]
[348520220,1736601053464,-1413.65,0.00010716,2]
[348520221,1736601053473,-955.31831742,0.00010716,2]
[348520222,1736601053484,-1129.32310526,0.00010716,2]
[348520223,1736601053514,-381.13857732,0.00010716,2]
[348520224,1736601053523,-164.06,0.00010716,2]
[348520225,1736601053532,-139.96153421,0.00010716,2]
[348520227,1736601527493,673.61,8.219e-05,2]
[348520229,1736601904432,954.23448551,8.337e-05,2]
[348520230,1736601904459,2233.23551449,8.337e-05,2]
[348520233,1736601953942,250.0,8.298e-05,2]
[348520234,1736601980559,7516.76448551,8.374e-05,2]
[348520235,1736601980584,10000.0,8.374e-05,2]
[348520236,1736601980611,6373.23551449,8.374e-05,2]
[348520240,1736602119989,1685.34,8.338e-05,2]
[348520241,1736602124400,1941.42448551,8e-05,2]
[348520242,1736602124422,8058.57551449,8e-05,2]
[348520243,1736602209000,679.9,8.352e-05,2]
[348520247,1736602232666,-1058.0,8.568e-05,2]
[348520248,1736602232676,-1000.0,8.628e-05,2]
[348520249,1736602232685,-250.0,8.663e-05,2]
[348520250,1736602232695,-2692.17539957,8.663e-05,2]
[348520251,1736602232705,-524.23,8.696e-05,2]
[348520252,1736602232714,-1070.28,8.773e-05,2]
[348520253,1736602232723,-172.86,8.783e-05,2]
[348520254,1736602232732,-1278.05,8.831e-05,2]
[348520255,1736602232741,-1072.0,8.831e-05,2]
[348520256,1736602232751,-150.99,8.864e-05,2]
[348520257,1736602232760,-5151.24,8.864e-05,2]
[348520259,1736602232769,-646.45,8.902e-05,2]
[348520261,1736602232779,-2000.0,8.944e-05,2]
[348520263,1736602232789,-1058.0,8.946e-05,2]
[348520265,1736602232798,-733.17,9.009e-05,2]
[348520267,1736602232807,-150.0,9.037e-05,2]
[348520269,1736602232816,-346.91042057,9.037e-05,2]
[348520271,1736602232825,-34426.33871114,9.038e-05,2]
[348520296,1736602238352,-19327.89872632,9.038e-05,2]
[348520297,1736602238443,-541.64756007,9.038e-05,2]
[348520328,1736602240406,-23485.11500247,9.038e-05,2]
[348520329,1736602240416,-163.22,9.048e-05,2]
[348520330,1736602240426,-568.73,9.222e-05,2]
[348520331,1736602240436,-999.99,9.222e-05,2]
[348520332,1736602240446,-9999.99,9.222e-05,2]
[348520333,1736602240455,-6267.02,9.263e-05,2]
[348520334,1736602240465,-3366.99,9.263e-05,2]
[348520335,1736602240475,-1500.0,9.3e-05,2]
[348520336,1736602240485,-1132.12,9.347e-05,2]
[348520337,1736602240496,-1058.0,9.417e-05,2]
[348520338,1736602240506,-981.96693255,9.438e-05,2]
[348520339,1736602240515,-981.96693256,9.438e-05,2]
[348520340,1736602240524,-11671.4911,9.489e-05,2]
[348520341,1736602240533,-60442.75,9.589e-05,2]
[348520342,1736602240542,-500.0,9.664e-05,2]
[348520343,1736602240551,-280.7877,9.694e-05,2]
[348520344,1736602240560,-1000.0,9.706e-05,2]
[348520345,1736602240570,-396.5829,9.794e-05,2]
[348520346,1736602240579,-14519.1087,9.795e-05,2]
[348520347,1736602240588,-624.9938,9.795e-05,2]
[348520348,1736602240597,-1188.42,9.887e-05,2]
[348520349,1736602240606,-500.0,9.887e-05,2]
[348520350,1736602240615,-500.0,9.887e-05,2]
[348520351,1736602240624,-1448.92,9.887e-05,2]
[348520352,1736602240633,-1436.04,9.887e-05,2]
[348520353,1736602240643,-1173.26,9.887e-05,2]
[348520354,1736602240652,-500.0,9.887e-05,2]
[348520355,1736602240661,-1016.6,9.887e-05,2]
[348520356,1736602240670,-1435.81,9.887e-05,2]
[348520357,1736602240680,-500.0,9.887e-05,2]
[348520358,1736602240690,-500.0,9.887e-05,2]
[348520359,1736602240702,-500.0,9.887e-05,2]
[348520360,1736602240711,-500.0,9.887e-05,2]
[348520361,1736602240720,-500.0,9.887e-05,2]
[348520362,1736602240729,-500.0,9.887e-05,2]
[348520363,1736602240738,-500.0,9.887e-05,2]
[348520364,1736602240749,-500.0,9.887e-05,2]
[348520365,1736602240758,-500.0,9.887e-05,2]
[348520366,1736602240768,-500.0,9.887e-05,2]
[348520367,1736602240778,-500.0,9.887e-05,2]
[348520368,1736602240787,-500.0,9.887e-05,2]
[348520369,1736602240797,-500.0,9.887e-05,2]
[348520370,1736602240806,-500.0,9.887e-05,2]
[348520371,1736602240815,-80583.83031295,9.888e-05,2]
[348520372,1736602240826,-302661.85736997,9.888e-05,2]
[348520373,1736602240836,-193.23910683,9.89e-05,2]
[348520374,1736602240845,-554.54,9.891e-05,2]
[348520375,1736602240854,-500.0,9.891e-05,2]
[348520376,1736602240863,-500.0,9.891e-05,2]
[348520378,1736602240872,-887.94,9.891e-05,2]
[348520380,1736602240881,-500.0,9.891e-05,2]
[348520382,1736602240890,-634.81,9.891e-05,2]
[348520383,1736602240900,-625.67,9.891e-05,2]
[348520384,1736602240909,-854.5,9.892e-05,2]
[348520385,1736602240918,-500.0,9.892e-05,2]
[348520386,1736602240927,-500.0,9.892e-05,2]
[348520388,1736602240937,-1341.25,9.892e-05,2]
[348520389,1736602240946,-500.0,9.892e-05,2]
[348520390,1736602240955,-1259.15,9.892e-05,2]
[348520391,1736602240964,-880.72,9.892e-05,2]
[348520392,1736602240973,-500.0,9.892e-05,2]
[348520393,1736602240982,-1380.81,9.892e-05,2]
[348520394,1736602240992,-4836.02,9.892e-05,2]
[348520395,1736602241001,-1849.84,9.892e-05,2]
[348520396,1736602241010,-500.0,9.892e-05,2]
[348520397,1736602241020,-500.0,9.892e-05,2]
[348520398,1736602241029,-863.78,9.892e-05,2]
[348520399,1736602241038,-1155.67,9.892e-05,2]
[348520400,1736602241047,-1436.99,9.892e-05,2]
[348520401,1736602241056,-1627.76,9.892e-05,2]
[348520402,1736602241066,-500.0,9.892e-05,2]
[348520403,1736602241075,-1278.037167,9.892e-05,2]
[348520404,1736602241084,-733.2,9.892e-05,2]
[348520405,1736602241095,-158.280976,9.892e-05,2]
[348520406,1736602241105,-2979.57,9.892e-05,2]
[348520407,1736602241114,-156.080894,9.892e-05,2]
[348520408,1736602241123,-905.02,9.892e-05,2]
[348520409,1736602241133,-1319.738712,9.892e-05,2]
[348520410,1736602241142,-500.0,9.892e-05,2]
[348520411,1736602241152,-1293.1,9.892e-05,2]
[348520412,1736602241162,-2124.58,9.892e-05,2]
[348520413,1736602241172,-876.5,9.892e-05,2]
[348520414,1736602241182,-500.0,9.893e-05,2]
[348520415,1736602241191,-500.0,9.893e-05,2]
[348520416,1736602241201,-500.0,9.893e-05,2]
[348520417,1736602241211,-500.0,9.893e-05,2]
[348520418,1736602241220,-500.0,9.893e-05,2]
[348520419,1736602241230,-500.0,9.893e-05,2]
[348520420,1736602241239,-500.0,9.893e-05,2]
[348520421,1736602241250,-500.0,9.893e-05,2]
[348520422,1736602241259,-500.0,9.893e-05,2]
[348520423,1736602241269,-500.0,9.893e-05,2]
[348520424,1736602241278,-500.0,9.893e-05,2]
[348520425,1736602241286,-472.94677048,9.893e-05,2]
[348520426,1736602241295,-500.0,9.893e-05,2]
[348520427,1736602241305,-500.0,9.893e-05,2]
[348520428,1736602241315,-500.0,9.893e-05,2]
[348520429,1736602241324,-500.0,9.893e-05,2]
[348520430,1736602241334,-500.0,9.893e-05,2]
[348520431,1736602241343,-500.0,9.893e-05,2]
[348520432,1736602241353,-500.0,9.893e-05,2]
[348520433,1736602241362,-500.0,9.893e-05,2]
[348520434,1736602241371,-500.0,9.893e-05,2]
[348520435,1736602241381,-500.0,9.893e-05,2]
[348520436,1736602241390,-500.0,9.893e-05,2]
[348520437,1736602241400,-500.0,9.893e-05,2]
[348520438,1736602241412,-500.0,9.893e-05,2]
[348520439,1736602241422,-500.0,9.893e-05,2]
[348520440,1736602241431,-500.0,9.893e-05,2]
[348520441,1736602241442,-500.0,9.893e-05,2]
[348520442,1736602241451,-500.0,9.893e-05,2]
[348520443,1736602241460,-500.0,9.893e-05,2]
[348520444,1736602241469,-500.0,9.893e-05,2]
[348520445,1736602241479,-500.0,9.893e-05,2]
[348520446,1736602241487,-500.0,9.893e-05,2]
[348520447,1736602241497,-500.0,9.893e-05,2]
[348520448,1736602241506,-500.0,9.893e-05,2]
[348520449,1736602241515,-500.0,9.893e-05,2]
[348520450,1736602241525,-609.18,9.893e-05,2]
[348520451,1736602241535,-500.0,9.893e-05,2]
[348520452,1736602241544,-500.0,9.893e-05,2]
[348520453,1736602241552,-500.0,9.893e-05,2]
[348520454,1736602241561,-500.0,9.893e-05,2]
[348520455,1736602241571,-500.0,9.893e-05,2]
[348520456,1736602241580,-500.0,9.893e-05,2]
[348520457,1736602241589,-500.0,9.893e-05,2]
[348520458,1736602241599,-500.0,9.893e-05,2]
[348520459,1736602241609,-500.0,9.893e-05,2]
[348520460,1736602241618,-500.0,9.893e-05,2]
[348520461,1736602241628,-500.0,9.893e-05,2]
[348520462,1736602241637,-500.0,9.893e-05,2]
[348520463,1736602241647,-500.0,9.893e-05,2]
[348520464,1736602241656,-500.0,9.893e-05,2]
[348520465,1736602241665,-677.32,9.893e-05,2]
[348520466,1736602241674,-501.40913893,9.893e-05,2]
[348520467,1736602241684,-500.0,9.893e-05,2]
[348520468,1736602241695,-500.0,9.893e-05,2]
[348520469,1736602241704,-500.0,9.893e-05,2]
[348520470,1736602241714,-500.0,9.893e-05,2]
[348520471,1736602241723,-500.0,9.893e-05,2]
[348520472,1736602241732,-500.0,9.893e-05,2]
[348520473,1736602241742,-500.0,9.893e-05,2]
[348520474,1736602241751,-500.0,9.893e-05,2]
[348520475,1736602241761,-500.0,9.893e-05,2]
[348520476,1736602241770,-670.8,9.893e-05,2]
[348520477,1736602241779,-657.09,9.893e-05,2]
[348520478,1736602241788,-500.0,9.893e-05,2]
[348520479,1736602241798,-500.0,9.893e-05,2]
[348520480,1736602241807,-500.0,9.893e-05,2]
[348520481,1736602241817,-500.0,9.893e-05,2]
[348520482,1736602241827,-584.1,9.893e-05,2]
[348520483,1736602241836,-500.0,9.893e-05,2]
[348520484,1736602241845,-500.0,9.893e-05,2]
[348520485,1736602241854,-500.0,9.893e-05,2]
[348520486,1736602241863,-703.16,9.893e-05,2]
[348520487,1736602241872,-500.0,9.893e-05,2]
[348520488,1736602241882,-500.0,9.893e-05,2]
[348520489,1736602241891,-500.0,9.893e-05,2]
[348520490,1736602241900,-500.0,9.893e-05,2]
[348520491,1736602241909,-500.0,9.893e-05,2]
[348520492,1736602241919,-500.0,9.893e-05,2]
[348520493,1736602241929,-500.0,9.893e-05,2]
[348520494,1736602241939,-500.0,9.893e-05,2]
[348520495,1736602241948,-500.0,9.893e-05,2]
[348520496,1736602241958,-500.0,9.893e-05,2]
[348520497,1736602241968,-500.0,9.893e-05,2]
[348520498,1736602241977,-500.0,9.893e-05,2]
[348520499,1736602241987,-500.0,9.893e-05,2]
[348520500,1736602241996,-500.0,9.893e-05,2]
[348520501,1736602242006,-500.0,9.893e-05,2]
[348520502,1736602242015,-500.0,9.893e-05,2]
[348520503,1736602242025,-500.0,9.893e-05,2]
[348520504,1736602242035,-500.0,9.893e-05,2]
[348520505,1736602242045,-500.0,9.893e-05,2]
[348520506,1736602242055,-500.0,9.893e-05,2]
[348520507,1736602242065,-597.22,9.893e-05,2]
[348520508,1736602242075,-500.0,9.893e-05,2]
[348520509,1736602242085,-500.0,9.893e-05,2]
[348520510,1736602242095,-500.0,9.893e-05,2]
[348520511,1736602242105,-500.0,9.893e-05,2]
[348520512,1736602242115,-500.0,9.893e-05,2]
[348520513,1736602242125,-500.0,9.893e-05,2]
[348520514,1736602242134,-500.0,9.893e-05,2]
[348520515,1736602242143,-500.0,9.893e-05,2]
[348520516,1736602242152,-500.0,9.893e-05,2]
[348520517,1736602242161,-500.0,9.893e-05,2]
[348520518,1736602242171,-500.0,9.893e-05,2]
[348520519,1736602242180,-500.0,9.893e-05,2]
[348520520,1736602242189,-500.0,9.893e-05,2]
[348520521,1736602242199,-500.0,9.893e-05,2]
[348520522,1736602242208,-500.0,9.893e-05,2]
[348520523,1736602242218,-630.78,9.893e-05,2]
[348520524,1736602242227,-500.0,9.893e-05,2]
[348520525,1736602242237,-500.0,9.893e-05,2]
[348520526,1736602242247,-500.0,9.893e-05,2]
[348520527,1736602242257,-500.0,9.893e-05,2]
[348520528,1736602242267,-500.0,9.893e-05,2]
[348520529,1736602242276,-500.0,9.893e-05,2]
[348520530,1736602242286,-500.0,9.893e-05,2]
[348520531,1736602242296,-500.0,9.893e-05,2]
[348520532,1736602242305,-500.0,9.893e-05,2]
[348520533,1736602242315,-500.0,9.893e-05,2]
[348520534,1736602242324,-500.0,9.893e-05,2]
[348520535,1736602242333,-672.73,9.893e-05,2]
[348520536,1736602242343,-564.23,9.893e-05,2]
[348520537,1736602242352,-500.0,9.893e-05,2]
[348520538,1736602242361,-500.0,9.893e-05,2]
[348520539,1736602242371,-536.97814764,9.893e-05,2]
[348520540,1736602242380,-500.0,9.893e-05,2]
[348520541,1736602242390,-500.0,9.893e-05,2]
[348520542,1736602242399,-500.0,9.893e-05,2]
[348520543,1736602242409,-500.0,9.893e-05,2]
[348520544,1736602242420,-460.21654168,9.893e-05,2]
[348520545,1736602242429,-500.0,9.893e-05,2]
[348520546,1736602242439,-500.0,9.893e-05,2]
[348520547,1736602242447,-500.0,9.893e-05,2]
[348520548,1736602242457,-500.0,9.893e-05,2]
[348520549,1736602242466,-500.0,9.893e-05,2]
[348520550,1736602242475,-500.0,9.893e-05,2]
[348520551,1736602242485,-500.0,9.893e-05,2]
[348520552,1736602242494,-500.0,9.893e-05,2]
[348520553,1736602242504,-500.0,9.893e-05,2]
[348520554,1736602242513,-500.0,9.893e-05,2]
[348520555,1736602242522,-500.0,9.893e-05,2]
[348520556,1736602242531,-514.17,9.893e-05,2]
[348520557,1736602242541,-500.0,9.893e-05,2]
[348520558,1736602242550,-500.0,9.893e-05,2]
[348520559,1736602242559,-500.0,9.893e-05,2]
[348520560,1736602242569,-500.0,9.893e-05,2]
[348520561,1736602242578,-1327.82,9.893e-05,2]
[348520562,1736602242587,-500.0,9.893e-05,2]
[348520563,1736602242596,-500.0,9.893e-05,2]
[348520564,1736602242605,-500.0,9.893e-05,2]
[348520565,1736602242614,-271.76543166,9.893e-05,2]
[348520566,1736602242623,-500.0,9.893e-05,2]
[348520567,1736602242633,-500.0,9.893e-05,2]
[348520568,1736602242642,-500.0,9.893e-05,2]
[348520569,1736602242651,-500.0,9.893e-05,2]
[348520570,1736602242660,-500.0,9.893e-05,2]
[348520571,1736602242670,-500.0,9.893e-05,2]
[348520572,1736602242679,-500.0,9.893e-05,2]
[348520573,1736602242689,-500.0,9.893e-05,2]
[348520574,1736602242702,-500.0,9.893e-05,2]
[348520575,1736602242711,-613.64,9.893e-05,2]
[348520576,1736602242720,-500.0,9.893e-05,2]
[348520577,1736602242729,-500.0,9.893e-05,2]
[348520578,1736602242740,-500.0,9.893e-05,2]
[348520579,1736602242751,-2962.77,9.893e-05,2]
[348520580,1736602242760,-500.0,9.893e-05,2]
[348520581,1736602242769,-3008.46,9.893e-05,2]
[348520582,1736602242782,-757.97,9.893e-05,2]
[348520583,1736602242791,-500.0,9.893e-05,2]
[348520584,1736602242800,-500.0,9.893e-05,2]
[348520585,1736602242809,-500.0,9.893e-05,2]
[348520586,1736602242818,-500.0,9.893e-05,2]
[348520587,1736602242827,-195.37188845,9.893e-05,2]
[348520588,1736602242839,-500.0,9.893e-05,2]
[348520589,1736602242848,-500.0,9.893e-05,2]
[348520590,1736602242857,-500.0,9.893e-05,2]
[348520591,1736602242866,-500.0,9.893e-05,2]
[348520592,1736602242875,-500.0,9.893e-05,2]
[348520593,1736602242883,-500.0,9.893e-05,2]
[348520594,1736602242892,-500.0,9.893e-05,2]
[348520595,1736602243099,-500.0,9.893e-05,2]
[348520596,1736602243108,-516.17187516,9.893e-05,2]
[348520597,1736602243117,-500.0,9.893e-05,2]
[348520598,1736602243126,-312.02802649,9.893e-05,2]
[348520599,1736602243135,-1850.04,9.893e-05,2]
[348520600,1736602243145,-500.0,9.893e-05,2]
[348520601,1736602243156,-500.0,9.893e-05,2]
[348520602,1736602243166,-500.0,9.893e-05,2]
[348520603,1736602243176,-500.0,9.893e-05,2]
[348520604,1736602243186,-500.0,9.893e-05,2]
[348520605,1736602243196,-500.0,9.893e-05,2]
[348520606,1736602243205,-500.0,9.893e-05,2]
[348520607,1736602243216,-500.0,9.893e-05,2]
[348520608,1736602243225,-500.0,9.893e-05,2]
[348520609,1736602243234,-500.0,9.893e-05,2]
[348520610,1736602243243,-500.0,9.893e-05,2]
[348520611,1736602243252,-500.0,9.893e-05,2]
[348520612,1736602243261,-500.0,9.893e-05,2]
[348520613,1736602243271,-504.12861252,9.893e-05,2]
[348520614,1736602243280,-500.0,9.893e-05,2]
[348520615,1736602243289,-500.0,9.893e-05,2]
[348520617,1736602243298,-2861.06,9.893e-05,2]
[348520619,1736602243307,-500.0,9.893e-05,2]
[348520620,1736602243316,-500.0,9.893e-05,2]
[348520621,1736602243325,-500.76309158,9.893e-05,2]
[348520622,1736602243334,-241.10875485,9.893e-05,2]
[348520623,1736602243344,-500.0,9.893e-05,2]
[348520624,1736602243353,-500.0,9.893e-05,2]
[348520625,1736602243363,-500.0,9.893e-05,2]
[348520626,1736602243373,-500.0,9.893e-05,2]
[348520627,1736602243384,-500.0,9.893e-05,2]
[348520628,1736602243393,-500.0,9.893e-05,2]
[348520629,1736602243403,-504.15426786,9.894e-05,2]
[348520630,1736602243413,-947.73,9.894e-05,2]
[348520631,1736602243423,-500.0,9.894e-05,2]
[348520632,1736602243432,-946.76,9.894e-05,2]
[348520633,1736602243441,-1000.98,9.894e-05,2]
[348520634,1736602243450,-682.12,9.894e-05,2]
[348520635,1736602243459,-1896.85,9.894e-05,2]
[348520636,1736602243469,-769.57,9.894e-05,2]
[348520637,1736602243477,-500.0,9.894e-05,2]
[348520638,1736602243487,-500.0,9.894e-05,2]
[348520639,1736602243496,-500.0,9.894e-05,2]
[348520640,1736602243505,-500.0,9.894e-05,2]
[348520641,1736602243514,-500.0,9.894e-05,2]
[348520642,1736602243523,-500.0,9.894e-05,2]
[348520643,1736602243532,-500.0,9.894e-05,2]
[348520644,1736602243541,-500.0,9.894e-05,2]
[348520645,1736602243550,-500.0,9.894e-05,2]
[348520646,1736602243559,-500.0,9.894e-05,2]
[348520647,1736602243568,-500.0,9.894e-05,2]
[348520648,1736602243577,-500.0,9.894e-05,2]
[348520649,1736602243586,-500.0,9.894e-05,2]
[348520650,1736602243595,-873.8,9.894e-05,2]
[348520651,1736602243604,-703.49,9.894e-05,2]
[348520652,1736602243612,-938.43,9.894e-05,2]
[348520653,1736602243621,-500.0,9.894e-05,2]
[348520654,1736602243630,-500.0,9.894e-05,2]
[348520655,1736602243639,-500.0,9.894e-05,2]
[348520656,1736602243648,-500.0,9.894e-05,2]
[348520657,1736602243657,-500.0,9.894e-05,2]
[348520658,1736602243666,-500.0,9.894e-05,2]
[348520659,1736602243675,-500.0,9.894e-05,2]
[348520660,1736602243684,-500.0,9.894e-05,2]
[348520661,1736602243693,-500.0,9.894e-05,2]
[348520662,1736602243705,-500.0,9.894e-05,2]
[348520664,1736602243714,-500.0,9.894e-05,2]
[348520666,1736602243723,-896.05,9.894e-05,2]
[348520668,1736602243732,-500.0,9.894e-05,2]
[348520670,1736602243741,-500.0,9.894e-05,2]
[348520672,1736602243751,-500.0,9.894e-05,2]
[348520674,1736602243760,-667.13,9.894e-05,2]
[348520676,1736602243770,-500.0,9.894e-05,2]
[348520678,1736602243779,-500.0,9.894e-05,2]
[348520679,1736602243788,-500.0,9.894e-05,2]
[348520680,1736602243797,-500.0,9.894e-05,2]
[348520681,1736602243806,-591.69,9.894e-05,2]
[348520682,1736602243815,-500.0,9.894e-05,2]
[348520683,1736602243825,-544.67,9.894e-05,2]
[348520684,1736602243834,-500.0,9.894e-05,2]
[348520685,1736602243843,-500.0,9.894e-05,2]
[348520686,1736602243852,-363.6350957,9.894e-05,2]
[348520687,1736602244155,-488.8249043,9.894e-05,2]
[348520688,1736602244164,-500.0,9.894e-05,2]
[348520689,1736602244174,-500.0,9.894e-05,2]
[348520690,1736602244183,-500.0,9.894e-05,2]
[348520691,1736602244192,-500.0,9.894e-05,2]
[348520692,1736602244201,-500.0,9.894e-05,2]
[348520693,1736602244209,-500.0,9.894e-05,2]
[348520694,1736602244218,-500.0,9.894e-05,2]
[348520695,1736602244227,-537.44,9.894e-05,2]
[348520696,1736602244237,-500.0,9.894e-05,2]
[348520697,1736602244246,-637.59,9.894e-05,2]
[348520698,1736602244255,-500.0,9.894e-05,2]
[348520699,1736602244264,-500.0,9.894e-05,2]
[348520700,1736602244272,-500.0,9.894e-05,2]
[348520701,1736602244282,-500.0,9.894e-05,2]
[348520702,1736602244291,-500.0,9.894e-05,2]
[348520703,1736602244300,-500.0,9.894e-05,2]
[348520704,1736602244309,-599.25,9.894e-05,2]
[348520705,1736602244318,-500.0,9.894e-05,2]
[348520706,1736602244327,-500.0,9.894e-05,2]
[348520707,1736602244336,-500.0,9.894e-05,2]
[348520708,1736602244345,-500.0,9.894e-05,2]
[348520709,1736602244354,-500.0,9.894e-05,2]
[348520710,1736602244363,-384.16636738,9.894e-05,2]
[348520711,1736602244374,-500.0,9.894e-05,2]
[348520712,1736602244384,-388.43730427,9.894e-05,2]
[348520713,1736602244393,-1081.2,9.894e-05,2]
[348520714,1736602244402,-1081.2,9.894e-05,2]
[348520715,1736602244413,-500.0,9.894e-05,2]
[348520716,1736602244423,-562.5,9.894e-05,2]
[348520717,1736602244432,-500.0,9.894e-05,2]
[348520718,1736602244441,-500.0,9.894e-05,2]
[348520719,1736602244450,-500.0,9.894e-05,2]
[348520720,1736602244459,-500.0,9.894e-05,2]
[348520721,1736602244469,-500.0,9.894e-05,2]
[348520722,1736602244478,-553.33,9.894e-05,2]
[348520723,1736602244487,-500.0,9.894e-05,2]
[348520724,1736602244495,-556.15,9.894e-05,2]
[348520725,1736602244505,-500.0,9.894e-05,2]
[348520726,1736602244514,-500.0,9.894e-05,2]
[348520727,1736602244523,-500.0,9.894e-05,2]